[Event "GER-ch Youth U10 2019"]
[Site "Willingen"]
[Date "2019.06.12"]
[Round "7.1"]
[White "Helms, Finn"]
[Black "Besou, Hussain"]
[Result "1-0"]
[ECO "A45"]
[WhiteElo "1773"]
[BlackElo "1785"]
[Annotator "NA"]
[PlyCount "94"]
[EventDate "2019.06.07"]
[EventType "swiss"]
[EventRounds "11"]
[EventCountry "GER"]
[SourceTitle "playchess.com"]
[Source "ChessBase"]
[SourceQuality "1"]
[TimeControl "40/4500+30:900+30"]

1. d4 {[%emt 0:00:00]} Nf6 {[%emt 0:00:00]} 2. Bf4 {[%emt 0:00:00]} e6 {[%emt 0:00:00]} 3. e3 {[%emt 0:00:00]} b6 {[%emt 0:00:00]} 4. Nf3 {[%emt 0:00:00]} Bb7 {[%emt 0:00:06]} 5. Bd3 {[%emt 0:00:00]} c5 {[%emt 0:00:17]} 6. c3 {[%emt 0:00:00]} Be7 {[%emt 0:00:30]} 7. h3 {[%emt 0:00:10]} d6 {[%emt 0:00:21]} 8. Nbd2 {[%emt 0:00:09]} a6 {[%emt 0:00:38]} 9. a4 {[%emt 0:00:37]} Nbd7 {[%emt 0:00:23]} 10. O-O {[%emt 0:00:13]} e5 {[%emt 0:00:12]} 11. dxe5 {[%emt 0:00:24]} dxe5 {[%emt 0:00:05]} 12. Bxe5 {[%emt 0:00:22]} Nxe5 {[%emt 0:00:32]} 13. Nxe5 {[%emt 0:00:06]} Qd5 {[%emt 0:01:17]} 14. Ndf3 {[%emt 0:00:16]} O-O {[%emt 0:01:46]} 15. Bc4 {[%emt 0:01:03]} Qd6 {[%emt 0:00:53]} 16. Qb3 {[%emt 0:01:34]} Bd5 {[%emt 0:02:08]} 17. Rad1 {[%emt 0:00:51]} Bxc4 {[%emt 0:01:32]} 18. Qxc4 {[%emt 0:02:03]} Qc7 {[%emt 0:00:08]} 19. Rd2 {[%emt 0:08:16]} Bd6 {[%emt 0:01:02]} 20. Nd3 {[%emt 0:00:51]} Rfe8 {[%emt 0:00:49]} 21. Nc1 {[%emt 0:07:01]} Re4 {[%emt 0:01:36]} 22. Qb3 {[%emt 0:01:50]} h6 {[%emt 0:00:58]} 23. c4 {[%emt 0:02:46]} Rae8 {[%emt 0:00:49]} 24. Rfd1 {[%emt 0:00:27]} R4e6 {[%emt 0:01:06]} 25. Rd3 {[%emt 0:01:43]} Ne4 {[%emt 0:01:47]} 26. Ne2 {[%emt 0:01:28]} Rg6 {[%emt 0:05:01]} 27. Nc3 {[%emt 0:05:20]} Nxc3 {[%emt 0:15:37]} 28. Qxc3 {[%emt 0:01:15]} Re4 {[%emt 0:04:56]} 29. Qd2 {[%emt 0:02:13]} Bf8 {[%emt 0:01:53]} 30. b3 {[%emt 0:00:26]} Qc6 {[%emt 0:03:04]} 31. Rd5 {[%emt 0:01:02]} Qf6 {[%emt 0:03:48]} 32. Kf1 {[%emt 0:00:46]} Qc6 {[%emt 0:21:31]} 33. Ne5 {[%emt 0:04:30]} Rxe5 {[%emt 0:01:19]} 34. Rxe5 {[%emt 0:01:32]} Qxg2+ {[%emt 0:00:05]} 35. Ke2 {[%emt 0:00:00]} Rf6 {[%emt 0:01:47]} 36. Rf1 {[%emt 0:00:15]} Qf3+ {[%emt 0:00:35]} 37. Ke1 {[%emt 0:00:11]} Bd6 {[%emt 0:01:10]} 38. Rd5 {[%emt 0:00:35]} Bh2 {[%emt 0:02:14]} 39. Qc2 {[%emt 0:01:11]} g6 {[%emt 0:00:37]} 40. Qe2 {[%emt 0:00:25]} Qxh3 {[%emt 0:00:23]} 41. Qb2 {[%emt 0:17:22]} Qf3 {[%emt 0:16:28]} 42. Qe2 {[%emt 0:00:35]} Qe4 {[%emt 0:00:50]} 43. Qd3 {[%emt 0:00:22]} Qf3 {[%emt 0:00:18]} 44. a5 {[%emt 0:00:22]} bxa5 {[%emt 0:02:47]} 45. Rxc5 {[%emt 0:01:06]} Kh7 46. Rxa5 {[%emt 0:01:14]} Bc7 {[%emt 0:03:38]} 47. Rd5 {[%emt 0:00:19]} a5 {[%emt 0:02:32] normal} 1-0

[Event "GER-ch Youth U10 2019"]
[Site "Willingen"]
[Date "2019.06.12"]
[Round "7.3"]
[White "Haubold, Christian Lucas"]
[Black "Sommer, Justus"]
[Result "0-1"]
[ECO "C54"]
[WhiteElo "1387"]
[BlackElo "1684"]
[Annotator "NA"]
[PlyCount "72"]
[EventDate "2019.06.07"]
[EventType "swiss"]
[EventRounds "11"]
[EventCountry "GER"]
[SourceTitle "playchess.com"]
[Source "ChessBase"]
[SourceQuality "1"]
[TimeControl "40/4500+30:900+30"]

1. e4 {[%emt 0:00:00]} e5 {[%emt 0:01:06]} 2. Nf3 {[%emt 0:00:00]} Nc6 {[%emt 0:00:12]} 3. Bc4 {[%emt 0:00:32]} Bc5 {[%emt 0:00:23]} 4. c3 {[%emt 0:00:56]} Nf6 {[%emt 0:00:33]} 5. d4 {[%emt 0:00:19]} exd4 {[%emt 0:00:26]} 6. cxd4 {[%emt 0:00:12]} Bb4+ {[%emt 0:00:08]} 7. Bd2 {[%emt 0:00:46]} Bxd2+ {[%emt 0:00:15]} 8. Nbxd2 {[%emt 0:00:09]} d5 {[%emt 0:00:26]} 9. exd5 {[%emt 0:01:03]} Nxd5 {[%emt 0:00:20]} 10. O-O {[%emt 0:02:20]} O-O {[%emt 0:01:00]} 11. Rc1 {[%emt 0:03:30]} Bg4 {[%emt 0:04:46]} 12. h3 {[%emt 0:00:55]} Bh5 {[%emt 0:00:16]} 13. Qb3 {[%emt 0:15:41]} Na5 {[%emt 0:03:57]} 14. Qa4 {[%emt 0:07:30]} Nxc4 {[%emt 0:00:56]} 15. Qxc4 {[%emt 0:00:12]} c6 {[%emt 0:00:17]} 16. Rfe1 {[%emt 0:03:39]} f6 {[%emt 0:08:45]} 17. Qb3 {[%emt 0:03:33]} Rb8 {[%emt 0:06:03]} 18. Qa3 {[%emt 0:03:27]} a6 {[%emt 0:05:05]} 19. Qc5 {[%emt 0:03:37]} Qb6 {[%emt 0:03:22]} 20. Qxb6 {[%emt 0:04:41]} Nxb6 {[%emt 0:00:20]} 21. g4 {[%emt 0:01:03]} Bf7 {[%emt 0:02:32]} 22. b3 {[%emt 0:01:12]} Nd5 {[%emt 0:03:39]} 23. Ra1 {[%emt 0:04:07]} Nb4 {[%emt 0:03:10]} 24. Rec1 {[%emt 0:02:35]} Rbd8 {[%emt 0:04:59]} 25. a3 {[%emt 0:00:46]} Nd5 {[%emt 0:03:45]} 26. Kh2 {[%emt 0:02:46]} Nf4 {[%emt 0:05:12]} 27. Rc3 {[%emt 0:02:32]} Bg6 {[%emt 0:04:30]} 28. Re3 {[%emt 0:01:19]} Nd5 {[%emt 0:00:57]} 29. Ree1 {[%emt 0:00:48]} Rd7 {[%emt 0:02:04]} 30. Nc4 {[%emt 0:02:01]} Bc2 {[%emt 0:02:19]} 31. b4 Bd3 {[%emt 0:01:04]} 32. Nb2 {[%emt 0:01:25]} Bg6 {[%emt 0:00:13]} 33. Nc4 {[%emt 0:00:18]} h5 {[%emt 0:00:54]} 34. Kg3 {[%emt 0:01:23]} Rfd8 {[%emt 0:01:55]} 35. Ne3 {[%emt 0:01:10]} Nc3 {[%emt 0:01:07]} 36. a4 {[%emt 0:01:29]} Ne4+ {[%emt 0:00:27] normal} 0-1

[Event "GER-ch Youth U10 2019"]
[Site "Willingen"]
[Date "2019.06.12"]
[Round "7.5"]
[White "Sauer, Tim"]
[Black "Torosyan, Bagrat"]
[Result "1/2-1/2"]
[ECO "A34"]
[WhiteElo "1553"]
[BlackElo "1444"]
[Annotator "NA"]
[PlyCount "88"]
[EventDate "2019.06.07"]
[EventType "swiss"]
[EventRounds "11"]
[EventCountry "GER"]
[SourceTitle "playchess.com"]
[Source "ChessBase"]
[SourceQuality "1"]
[TimeControl "40/4500+30:900+30"]

1. c4 {[%emt 0:00:00]} Nf6 {[%emt 0:00:00]} 2. Nc3 {[%emt 0:00:00]} c5 {[%emt 0:00:00]} 3. g3 {[%emt 0:00:00]} Nc6 {[%emt 0:00:00]} 4. Bg2 {[%emt 0:00:02]} g6 {[%emt 0:00:06]} 5. e3 {[%emt 0:00:45]} d6 {[%emt 0:00:07]} 6. Nge2 {[%emt 0:00:38]} Bg7 {[%emt 0:00:09]} 7. O-O {[%emt 0:00:16]} a6 {[%emt 0:00:20]} 8. d4 {[%emt 0:00:20]} Bd7 {[%emt 0:00:25]} 9. b3 {[%emt 0:07:00]} Rb8 {[%emt 0:00:46]} 10. d5 {[%emt 0:05:17]} Na7 11. Bb2 {[%emt 0:01:33]} O-O {[%emt 0:01:20]} 12. e4 {[%emt 0:04:08]} b5 {[%emt 0:00:39]} 13. cxb5 {[%emt 0:00:47]} Nxb5 {[%emt 0:00:10]} 14. Qd2 {[%emt 0:04:50]} Qc8 {[%emt 0:02:21]} 15. Nf4 {[%emt 0:05:06]} Nd4 {[%emt 0:03:45]} 16. Nd1 {[%emt 0:05:08]} Ne8 {[%emt 0:04:13]} 17. Nc3 {[%emt 0:13:18]} Bb5 {[%emt 0:05:38]} 18. Nxb5 {[%emt 0:01:07]} axb5 {[%emt 0:00:11]} 19. Ne2 {[%emt 0:01:29]} Nxe2+ {[%emt 0:02:53]} 20. Qxe2 {[%emt 0:00:12]} Bxb2 {[%emt 0:00:06]} 21. Qxb2 {[%emt 0:00:14]} c4 {[%emt 0:02:20]} 22. Rfc1 {[%emt 0:04:16]} Qa6 {[%emt 0:01:09]} 23. bxc4 {[%emt 0:01:14]} Nf6 {[%emt 0:01:48]} 24. cxb5 {[%emt 0:00:40]} Rxb5 {[%emt 0:00:22]} 25. Qe2 {[%emt 0:00:54]} Qa5 {[%emt 0:02:13]} 26. Rab1 {[%emt 0:08:29]} Rfb8 {[%emt 0:01:13]} 27. Rxb5 {[%emt 0:01:00]} Qxb5 {[%emt 0:01:39]} 28. Qxb5 {[%emt 0:01:04]} Rxb5 {[%emt 0:00:09]} 29. Ra1 {[%emt 0:01:46]} Ra5 {[%emt 0:01:10]} 30. a4 {[%emt 0:00:08]} Nd7 {[%emt 0:00:06]} 31. Rb1 {[%emt 0:12:11]} Nc5 {[%emt 0:00:18]} 32. Ra1 {[%emt 0:03:44]} Rxa4 {[%emt 0:00:48]} 33. Rxa4 {[%emt 0:00:29]} Nxa4 {[%emt 0:00:10]} 34. Kf1 {[%emt 0:00:07]} Kg7 {[%emt 0:00:10]} 35. Ke2 {[%emt 0:00:04]} Kf6 {[%emt 0:00:10]} 36. Ke3 {[%emt 0:00:32]} g5 {[%emt 0:00:23]} 37. h3 {[%emt 0:00:23]} Nc5 {[%emt 0:00:43]} 38. f4 {[%emt 0:01:04]} gxf4+ {[%emt 0:00:36]} 39. gxf4 {[%emt 0:00:17]} e5 {[%emt 0:01:44]} 40. dxe6 {[%emt 0:01:41]} fxe6 {[%emt 0:03:46]} 41. Kd4 {[%emt 0:15:58]} Nd7 {[%emt 0:15:25]} 42. Bf3 {[%emt 0:01:46]} e5+ {[%emt 0:00:22]} 43. Ke3 {[%emt 0:00:00]} exf4+ {[%emt 0:00:00]} 44. Kxf4 {[%emt 0:00:00]} Ne5 {[%emt 0:00:00] normal} 1/2-1/2

[Event "GER-ch Youth U10 2019"]
[Site "Willingen"]
[Date "2019.06.12"]
[Round "7.6"]
[White "Huber, Benedikt"]
[Black "Haubold, Sebastian Marcel"]
[Result "1-0"]
[ECO "B22"]
[WhiteElo "1441"]
[BlackElo "1506"]
[Annotator "NA"]
[PlyCount "89"]
[EventDate "2019.06.07"]
[EventType "swiss"]
[EventRounds "11"]
[EventCountry "GER"]
[SourceTitle "playchess.com"]
[Source "ChessBase"]
[SourceQuality "1"]
[TimeControl "40/4500+30:900+30"]

1. e4 {[%emt 0:00:00]} c5 {[%emt 0:00:00]} 2. c3 {[%emt 0:00:00]} d5 {[%emt 0:00:00]} 3. exd5 {[%emt 0:00:00]} Qxd5 {[%emt 0:00:03]} 4. d4 {[%emt 0:00:00]} Nf6 {[%emt 0:00:21]} 5. Nf3 {[%emt 0:00:11]} Bg4 {[%emt 0:00:27]} 6. Be2 {[%emt 0:00:17]} e6 {[%emt 0:00:40]} 7. Na3 {[%emt 0:02:38]} a6 {[%emt 0:02:48]} 8. O-O {[%emt 0:03:05]} Be7 {[%emt 0:02:07]} 9. Be3 {[%emt 0:11:50]} cxd4 {[%emt 0:01:54]} 10. cxd4 {[%emt 0:01:40]} O-O {[%emt 0:04:39]} 11. Nc2 {[%emt 0:05:02]} Nc6 {[%emt 0:02:49]} 12. h3 {[%emt 0:04:34]} Bh5 {[%emt 0:03:54]} 13. Bf4 {[%emt 0:05:07]} b5 {[%emt 0:05:54]} 14. Ne3 {[%emt 0:03:39]} Qd7 {[%emt 0:01:02]} 15. Rc1 {[%emt 0:04:18]} Rac8 {[%emt 0:06:37]} 16. Nc2 {[%emt 0:05:59]} Rfd8 {[%emt 0:02:16]} 17. Be3 {[%emt 0:04:18]} Nd5 {[%emt 0:03:41]} 18. Bd2 {[%emt 0:01:43]} Bf6 {[%emt 0:02:17]} 19. Be3 {[%emt 0:05:06]} Nb6 {[%emt 0:01:24]} 20. Ne5 {[%emt 0:05:53]} Bxe5 {[%emt 0:04:39]} 21. dxe5 {[%emt 0:00:17]} Qxd1 {[%emt 0:01:04]} 22. Bxd1 {[%emt 0:00:07]} Bxd1 {[%emt 0:00:18]} 23. Bxb6 {[%emt 0:00:26]} Be2 {[%emt 0:00:47]} 24. Rfe1 {[%emt 0:00:48]} Nxe5 {[%emt 0:13:45]} 25. Rxe2 {[%emt 0:02:52]} Rd6 {[%emt 0:00:06]} 26. Rxe5 {[%emt 0:00:08]} Rxb6 27. Ree1 Rbc6 {[%emt 0:00:36]} 28. Re2 {[%emt 0:01:03]} a5 {[%emt 0:00:50]} 29. Rd2 {[%emt 0:00:29]} h6 {[%emt 0:00:14]} 30. Kf1 {[%emt 0:01:17]} b4 {[%emt 0:00:57]} 31. b3 {[%emt 0:00:20]} Kf8 {[%emt 0:00:52]} 32. Ke1 {[%emt 0:00:12]} Ke7 {[%emt 0:02:25]} 33. Kd1 {[%emt 0:00:22]} e5 {[%emt 0:00:29]} 34. Rb1 {[%emt 0:00:41]} f5 {[%emt 0:00:18]} 35. Ne3 {[%emt 0:00:25]} Ke6 {[%emt 0:00:10]} 36. Nc4 {[%emt 0:00:24]} a4 {[%emt 0:00:16]} 37. Re2 {[%emt 0:00:37]} Rd8+ {[%emt 0:00:29]} 38. Ke1 {[%emt 0:00:18]} Rc5 {[%emt 0:00:21]} 39. Rd1 {[%emt 0:00:19]} Rxd1+ {[%emt 0:01:48]} 40. Kxd1 {[%emt 0:00:04]} axb3 {[%emt 0:01:02]} 41. axb3 {[%emt 0:15:10]} g5 {[%emt 0:16:15]} 42. Rd2 {[%emt 0:00:49]} Rd5 {[%emt 0:00:52]} 43. Rxd5 {[%emt 0:00:10]} Kxd5 {[%emt 0:00:05]} 44. Kd2 {[%emt 0:00:29]} f4 {[%emt 0:00:11]} 45. f3 {[%emt 0:00:52] normal} 1-0

[Event "GER-ch Youth U10 2019"]
[Site "Willingen"]
[Date "2019.06.12"]
[Round "7.7"]
[White "Ruddat, Jarne"]
[Black "Navarro Jahnke, Leo"]
[Result "1/2-1/2"]
[ECO "B23"]
[WhiteElo "1350"]
[BlackElo "1334"]
[Annotator "NA"]
[PlyCount "77"]
[EventDate "2019.06.07"]
[EventType "swiss"]
[EventRounds "11"]
[EventCountry "GER"]
[SourceTitle "playchess.com"]
[Source "ChessBase"]
[SourceQuality "1"]
[TimeControl "40/4500+30:900+30"]

1. e4 {[%emt 0:00:00]} c5 {[%emt 0:00:00]} 2. Nc3 {[%emt 0:00:00]} a6 {[%emt 0:00:00]} 3. f4 {[%emt 0:00:09]} b5 {[%emt 0:00:00]} 4. g3 {[%emt 0:08:35]} Bb7 {[%emt 0:00:03]} 5. Bg2 {[%emt 0:00:29]} e6 {[%emt 0:00:07]} 6. d3 {[%emt 0:06:48]} d5 {[%emt 0:01:31]} 7. exd5 {[%emt 0:04:11]} exd5 {[%emt 0:00:02]} 8. Nce2 {[%emt 0:02:36]} Nf6 {[%emt 0:00:28]} 9. Nf3 {[%emt 0:03:23]} Nc6 {[%emt 0:01:29]} 10. O-O {[%emt 0:01:24]} Bd6 {[%emt 0:00:51]} 11. Re1 {[%emt 0:02:49]} O-O {[%emt 0:00:16]} 12. b3 {[%emt 0:08:43]} Re8 {[%emt 0:03:15]} 13. Bb2 {[%emt 0:00:53]} Ng4 {[%emt 0:00:13]} 14. d4 {[%emt 0:11:06]} c4 {[%emt 0:03:59]} 15. Nc3 {[%emt 0:03:50]} Ne3 {[%emt 0:01:54]} 16. Qd2 {[%emt 0:00:34]} b4 {[%emt 0:00:14]} 17. Rxe3 {[%emt 0:01:09]} bxc3 {[%emt 0:00:40]} 18. Bxc3 {[%emt 0:01:00]} Rxe3 {[%emt 0:13:54]} 19. Qxe3 {[%emt 0:00:13]} Bb4 {[%emt 0:00:13]} 20. bxc4 {[%emt 0:01:44]} dxc4 {[%emt 0:00:56]} 21. Bxb4 {[%emt 0:00:21]} Nxb4 {[%emt 0:02:24]} 22. Qc3 {[%emt 0:02:54]} Bxf3 {[%emt 0:00:25]} 23. Bxf3 {[%emt 0:00:04]} Rc8 {[%emt 0:00:17]} 24. Kg2 {[%emt 0:03:34]} Nd5 {[%emt 0:07:38]} 25. Qd2 {[%emt 0:02:48]} c3 {[%emt 0:01:33]} 26. Qe2 {[%emt 0:00:55]} g6 {[%emt 0:05:32]} 27. Qe4 {[%emt 0:01:59]} Nb6 {[%emt 0:02:51]} 28. Be2 {[%emt 0:01:34]} Nc4 {[%emt 0:05:38]} 29. Re1 {[%emt 0:03:17]} Nd2 {[%emt 0:00:49]} 30. Qe3 {[%emt 0:00:09]} Qd5+ {[%emt 0:00:29]} 31. Kg1 {[%emt 0:00:26]} Qxa2 {[%emt 0:00:11]} 32. Bd3 {[%emt 0:01:10]} a5 {[%emt 0:00:40]} 33. Ba6 {[%emt 0:01:03]} Ra8 {[%emt 0:00:41]} 34. Qxc3 {[%emt 0:00:46]} Nb1 {[%emt 0:02:21]} 35. Qc4 {[%emt 0:01:03]} Qb2 {[%emt 0:01:39]} 36. Re7 {[%emt 0:00:51]} Rf8 {[%emt 0:01:05]} 37. Qd5 {[%emt 0:01:19]} Nd2 {[%emt 0:02:24]} 38. Qxa5 {[%emt 0:01:07]} Qxd4+ {[%emt 0:00:41]} 39. Kg2 {[%emt 0:00:05] normal} 1/2-1/2

[Event "GER-ch Youth U10 2019"]
[Site "Willingen"]
[Date "2019.06.12"]
[Round "7.8"]
[White "Fietz, Nils"]
[Black "Malinowsky, Levi"]
[Result "1-0"]
[ECO "C54"]
[WhiteElo "1677"]
[BlackElo "1400"]
[Annotator "NA"]
[PlyCount "67"]
[EventDate "2019.06.07"]
[EventType "swiss"]
[EventRounds "11"]
[EventCountry "GER"]
[SourceTitle "playchess.com"]
[Source "ChessBase"]
[SourceQuality "1"]
[TimeControl "40/4500+30:900+30"]

1. e4 {[%emt 0:00:00]} e5 {[%emt 0:00:00]} 2. Nf3 {[%emt 0:00:00]} Nc6 {[%emt 0:00:23]} 3. Bc4 {[%emt 0:00:22]} Bc5 {[%emt 0:01:04]} 4. c3 {[%emt 0:00:54]} Nf6 {[%emt 0:01:01]} 5. d3 {[%emt 0:00:55]} h6 {[%emt 0:03:03]} 6. Nbd2 {[%emt 0:00:44]} d5 {[%emt 0:03:21]} 7. exd5 {[%emt 0:01:01]} Nxd5 {[%emt 0:00:12]} 8. Ne4 {[%emt 0:00:35]} Bb6 {[%emt 0:01:41]} 9. Bb5 {[%emt 0:04:51]} Bg4 {[%emt 0:05:00]} 10. Ng3 {[%emt 0:01:09]} Bxf3 {[%emt 0:08:22]} 11. Qxf3 {[%emt 0:00:36]} Qd7 {[%emt 0:02:55]} 12. O-O {[%emt 0:05:25]} O-O {[%emt 0:07:36]} 13. Nf5 {[%emt 0:02:47]} Qe6 {[%emt 0:09:36]} 14. Bxc6 {[%emt 0:02:11]} bxc6 {[%emt 0:03:08]} 15. c4 {[%emt 0:05:21]} Nb4 {[%emt 0:08:30]} 16. Qg4 {[%emt 0:04:01]} g5 {[%emt 0:15:17]} 17. Bxg5 {[%emt 0:01:05]} Kh7 {[%emt 0:03:25]} 18. Be7 {[%emt 0:02:47]} Rg8 {[%emt 0:00:49]} 19. Qe4 {[%emt 0:00:23]} c5 {[%emt 0:05:14]} 20. a3 {[%emt 0:06:34]} Na6 {[%emt 0:01:34]} 21. Ne3+ {[%emt 0:02:30]} Kh8 {[%emt 0:01:09]} 22. Nd5 {[%emt 0:02:29]} f5 {[%emt 0:01:04]} 23. Qh4 {[%emt 0:00:36]} Qg6 {[%emt 0:01:11]} 24. Bf6+ {[%emt 0:02:10]} Kh7 {[%emt 0:00:16]} 25. Qg3 {[%emt 0:00:14]} Qh5 {[%emt 0:00:37]} 26. Bg7 {[%emt 0:04:42]} Qg6 {[%emt 0:01:01]} 27. Qxg6+ {[%emt 0:00:38]} Kxg6 {[%emt 0:00:07]} 28. Bxe5 {[%emt 0:00:16]} Rae8 {[%emt 0:00:53]} 29. f4 {[%emt 0:00:52]} Re6 {[%emt 0:00:30]} 30. Rfe1 {[%emt 0:04:34]} Rge8 {[%emt 0:00:30]} 31. Bc3 {[%emt 0:03:15]} Rxe1+ {[%emt 0:00:30]} 32. Rxe1 {[%emt 0:00:18]} Rxe1+ {[%emt 0:00:07]} 33. Bxe1 {[%emt 0:00:06]} Kf7 {[%emt 0:00:53]} 34. Kf2 {[%emt 0:00:48] normal} 1-0

[Event "GER-ch Youth U10 2019"]
[Site "Willingen"]
[Date "2019.06.12"]
[Round "7.9"]
[White "Freude, Paul"]
[Black "Li, David"]
[Result "1-0"]
[ECO "B13"]
[WhiteElo "1713"]
[BlackElo "1418"]
[Annotator "NA"]
[PlyCount "89"]
[EventDate "2019.06.07"]
[EventType "swiss"]
[EventRounds "11"]
[EventCountry "GER"]
[SourceTitle "playchess.com"]
[Source "ChessBase"]
[SourceQuality "1"]
[TimeControl "40/4500+30:900+30"]

1. e4 {[%emt 0:00:00]} c6 {[%emt 0:00:00]} 2. d4 {[%emt 0:00:00]} d5 {[%emt 0:00:00]} 3. exd5 {[%emt 0:00:00]} cxd5 {[%emt 0:00:00]} 4. Bd3 {[%emt 0:00:00]} Nc6 {[%emt 0:00:28]} 5. c3 {[%emt 0:00:01]} Nf6 {[%emt 0:00:35]} 6. Bf4 {[%emt 0:04:20]} Bg4 {[%emt 0:00:36]} 7. Qb3 {[%emt 0:00:14]} Qd7 {[%emt 0:03:57]} 8. Nd2 {[%emt 0:00:16]} e6 {[%emt 0:00:57]} 9. Ngf3 {[%emt 0:00:50]} Be7 {[%emt 0:00:17]} 10. Ne5 {[%emt 0:00:36]} Qc8 {[%emt 0:03:54]} 11. O-O {[%emt 0:00:42]} O-O {[%emt 0:02:05]} 12. Rae1 {[%emt 0:01:24]} Nh5 {[%emt 0:23:35]} 13. Nxc6 {[%emt 0:06:17]} Qxc6 {[%emt 0:02:53]} 14. Be5 {[%emt 0:05:53]} Nf6 {[%emt 0:01:06]} 15. c4 {[%emt 0:05:37]} b6 {[%emt 0:04:02]} 16. Qc2 {[%emt 0:06:05]} dxc4 {[%emt 0:02:58]} 17. Bxf6 {[%emt 0:01:03]} Bxf6 {[%emt 0:00:21]} 18. Bxh7+ {[%emt 0:00:34]} Kh8 {[%emt 0:00:10]} 19. Be4 {[%emt 0:00:17]} Qc7 {[%emt 0:02:19]} 20. Bxa8 {[%emt 0:01:18]} Rxa8 {[%emt 0:00:05]} 21. Qe4 {[%emt 0:00:20]} Rd8 {[%emt 0:01:04]} 22. Qxg4 {[%emt 0:01:39]} Rxd4 {[%emt 0:00:15]} 23. Qe2 {[%emt 0:01:35]} Qd7 {[%emt 0:01:54]} 24. Nxc4 {[%emt 0:06:40]} Rh4 {[%emt 0:04:49]} 25. Ne5 {[%emt 0:02:40]} Qc7 {[%emt 0:00:28]} 26. Nf3 {[%emt 0:00:32]} Rc4 {[%emt 0:01:02]} 27. Qe3 {[%emt 0:02:47]} Bxb2 {[%emt 0:01:17]} 28. Rd1 {[%emt 0:06:24]} Rc5 {[%emt 0:01:10]} 29. Qd2 {[%emt 0:01:25]} Bf6 {[%emt 0:00:31]} 30. Rc1 {[%emt 0:01:01]} Bc3 {[%emt 0:02:23]} 31. Qe3 {[%emt 0:03:21]} Bb4 {[%emt 0:03:41]} 32. Rxc5 {[%emt 0:00:39]} Bxc5 {[%emt 0:00:15]} 33. Qe4 {[%emt 0:00:45]} Qd8 {[%emt 0:00:50]} 34. Qh4+ {[%emt 0:00:28]} Qxh4 {[%emt 0:00:13]} 35. Nxh4 {[%emt 0:00:06]} Kh7 {[%emt 0:01:27]} 36. Rd1 {[%emt 0:00:42]} f6 {[%emt 0:01:45]} 37. Re1 {[%emt 0:01:06]} e5 {[%emt 0:00:07]} 38. Rd1 {[%emt 0:00:08]} a5 {[%emt 0:00:49]} 39. Rd7 {[%emt 0:00:28]} Kh6 {[%emt 0:02:16]} 40. Nf5+ {[%emt 0:00:22]} Kg6 {[%emt 0:00:13]} 41. Nxg7 {[%emt 0:15:25]} b5 {[%emt 0:15:54]} 42. Rd5 {[%emt 0:01:26]} Bb4 {[%emt 0:03:47]} 43. Ne8 {[%emt 0:01:38]} Kf7 {[%emt 0:00:18]} 44. Nc7 {[%emt 0:00:35]} Ke7 {[%emt 0:00:29]} 45. Nxb5 {[%emt 0:00:47] normal} 1-0

[Event "GER-ch Youth U10 2019"]
[Site "Willingen"]
[Date "2019.06.13"]
[Round "8.1"]
[White "Ermitsch, Magnus"]
[Black "Helms, Finn"]
[Result "0-1"]
[ECO "C10"]
[WhiteElo "1843"]
[BlackElo "1773"]
[Annotator "NA"]
[PlyCount "110"]
[EventDate "2019.06.07"]
[EventType "swiss"]
[EventRounds "11"]
[EventCountry "GER"]
[SourceTitle "playchess.com"]
[Source "ChessBase"]
[SourceQuality "1"]
[TimeControl "40/4500+30:900+30"]

1. e4 {[%emt 0:00:00]} e6 {[%emt 0:00:00]} 2. d4 {[%emt 0:01:04]} d5 {[%emt 0:00:00]} 3. Nc3 {[%emt 0:00:42]} dxe4 {[%emt 0:00:00]} 4. Nxe4 {[%emt 0:00:32]} Nd7 {[%emt 0:00:00]} 5. Nf3 Ngf6 6. Bd3 {[%emt 0:02:45]} c5 {[%emt 0:00:46]} 7. O-O {[%emt 0:01:04]} Nxe4 {[%emt 0:00:40]} 8. Bxe4 {[%emt 0:00:37]} Nf6 {[%emt 0:00:09]} 9. Bd3 {[%emt 0:02:39]} Be7 {[%emt 0:00:37]} 10. c3 {[%emt 0:02:19]} cxd4 {[%emt 0:00:22]} 11. cxd4 {[%emt 0:04:37]} O-O {[%emt 0:00:16]} 12. Bd2 {[%emt 0:04:28]} b6 {[%emt 0:00:21]} 13. Rc1 {[%emt 0:06:35]} Bb7 {[%emt 0:00:25]} 14. Bc3 {[%emt 0:04:33]} Nd5 {[%emt 0:00:17]} 15. Bb1 {[%emt 0:07:53]} Bf6 {[%emt 0:00:58]} 16. Nd2 {[%emt 0:29:58]} g6 {[%emt 0:01:38]} 17. Be4 {[%emt 0:03:12]} Qe7 {[%emt 0:01:56]} 18. Re1 {[%emt 0:01:04]} Rfd8 {[%emt 0:01:21]} 19. Qf3 {[%emt 0:01:05]} Bg7 {[%emt 0:01:50]} 20. a3 {[%emt 0:06:21]} a5 {[%emt 0:00:30]} 21. Qe2 {[%emt 0:03:03]} Rac8 {[%emt 0:03:20]} 22. Bxd5 {[%emt 0:00:52]} Rxd5 {[%emt 0:00:35]} 23. Nf3 {[%emt 0:00:29]} Rcd8 {[%emt 0:01:27]} 24. Rcd1 {[%emt 0:00:26]} Qd7 {[%emt 0:01:27]} 25. Rd2 {[%emt 0:00:34]} Rf5 {[%emt 0:00:58]} 26. d5 {[%emt 0:00:36]} Rxd5 {[%emt 0:00:43]} 27. Bxg7 {[%emt 0:00:24]} Rxd2 {[%emt 0:00:31]} 28. Nxd2 {[%emt 0:00:10]} Kxg7 {[%emt 0:00:09]} 29. Ne4 {[%emt 0:00:50]} Qd5 {[%emt 0:00:29]} 30. f3 {[%emt 0:00:26]} Qd4+ {[%emt 0:00:35]} 31. Nf2 {[%emt 0:00:39]} Qc5 {[%emt 0:02:55]} 32. Kh1 {[%emt 0:00:31]} Qg5 {[%emt 0:00:51]} 33. Nh3 {[%emt 0:00:27]} Qf6 {[%emt 0:00:33]} 34. Rc1 Rd7 {[%emt 0:01:29]} 35. Kg1 {[%emt 0:00:59]} Qd4+ {[%emt 0:00:44]} 36. Nf2 {[%emt 0:00:34]} Qd2 {[%emt 0:00:36]} 37. Qxd2 {[%emt 0:00:29]} Rxd2 {[%emt 0:00:05]} 38. Rb1 {[%emt 0:00:31]} Bd5 {[%emt 0:00:17]} 39. b4 {[%emt 0:00:25]} Ra2 {[%emt 0:00:29]} 40. bxa5 {[%emt 0:00:36]} bxa5 {[%emt 0:00:09]} 41. Ne4 {[%emt 0:03:32]} Rxa3 {[%emt 0:00:29]} 42. Nc5 {[%emt 0:01:12]} Ra2 {[%emt 0:01:39]} 43. Nb3 {[%emt 0:00:25]} a4 {[%emt 0:00:22]} 44. Nc1 {[%emt 0:00:22]} Rc2 {[%emt 0:00:20]} 45. Nd3 {[%emt 0:00:57]} a3 {[%emt 0:00:25]} 46. Nb4 {[%emt 0:00:05]} Rb2 {[%emt 0:00:03]} 47. Ra1 {[%emt 0:00:12]} Rxb4 {[%emt 0:00:08]} 48. Rxa3 {[%emt 0:00:05]} Rb2 {[%emt 0:00:13]} 49. h3 {[%emt 0:00:16]} Kf6 {[%emt 0:00:06]} 50. Kh2 {[%emt 0:00:04]} h5 {[%emt 0:00:14]} 51. Kg3 {[%emt 0:00:08]} g5 {[%emt 0:00:15]} 52. Re3 {[%emt 0:01:01]} h4+ {[%emt 0:00:11]} 53. Kh2 {[%emt 0:00:00]} Kf5 {[%emt 0:00:19]} 54. Rd3 {[%emt 0:00:20]} f6 {[%emt 0:00:19]} 55. Rc3 {[%emt 0:00:19]} Kg6 {[%emt 0:00:21] normal} 0-1